[Event "Titled Tuesday Blitz November 29 Early 2022"]
[White "Dubov, Daniil"]
[Black "Jakubowski, Krzysztof"]
[WhiteFideId "24126055"]
[BlackFideId "1112848"]
[WhiteElo "2791"]
[BlackElo "2373"]
[Result "1-0"]
[Round "02"]
[TimeControl "180+1"]
[Date "2022.11.30"]
[WhiteClock "0:00:32"]
[BlackClock "0:00:09"]

1. e4 {[%clk 0:03:00]}  c5 {[%clk 0:02:59]} 2. Nf3 {[%clk 0:02:59]}  d6 {[%clk 0:02:59]} 3. d4 {[%clk 0:02:59]}  cxd4 {[%clk 0:02:59]} 4. Nxd4 {[%clk 0:03:00]}  Nf6 {[%clk 0:02:58]} 5. Nc3 {[%clk 0:03:01]}  a6 {[%clk 0:02:58]} 6. g3 {[%clk 0:02:55]}  e6 {[%clk 0:02:54]} 7. Bg2 {[%clk 0:02:54]}  Be7 {[%clk 0:02:52]} 8. O-O {[%clk 0:02:55]}  O-O {[%clk 0:02:50]} 9. b3 {[%clk 0:02:55]}  Qc7 {[%clk 0:02:45]} 10. Bb2 {[%clk 0:02:55]}  Nfd7 {[%clk 0:02:30]} 11. Nce2 {[%clk 0:02:54]}  b5 {[%clk 0:02:27]} 12. e5 {[%clk 0:02:51]}  d5 {[%clk 0:02:10]} 13. Nf4 {[%clk 0:02:50]}  Nxe5 {[%clk 0:02:01]} 14. Re1 {[%clk 0:02:26]}  Ng6 {[%clk 0:01:38]} 15. Nf5 {[%clk 0:02:06]}  Nxf4 {[%clk 0:01:10]} 16. Qd4 {[%clk 0:01:50]}  Bf6 {[%clk 0:00:55]} 17. Nh6+ {[%clk 0:01:49]}  Kh8 {[%clk 0:00:52]} 18. Qxf6 {[%clk 0:01:50]}  Nh5 {[%clk 0:00:52]} 19. Qg5 {[%clk 0:01:48]}  Qxc2 {[%clk 0:00:38]} 20. Ba3 {[%clk 0:00:49]}  gxh6 {[%clk 0:00:30]} 21. Qxh5 {[%clk 0:00:47]}  Rg8 {[%clk 0:00:20]} 22. Qxf7 {[%clk 0:00:46]}  Qc3 {[%clk 0:00:15]} 23. Rab1 {[%clk 0:00:40]}  Rg7 {[%clk 0:00:10]} 24. Qf8+ {[%clk 0:00:35]}  Rg8 {[%clk 0:00:10]} 25. Qxh6 {[%clk 0:00:36]}  Qg7 {[%clk 0:00:09]} 26. Bb2 {[%clk 0:00:34]}  d4 {[%clk 0:00:09]} 27. Qxg7+ {[%clk 0:00:32]} 1-0


[Site "https://www.chess.com"]

[Event "Titled Tuesday Blitz November 29 Early 2022"]
[White "Fajdetic, Hrvoje"]
[Black "Gonzalez, Francisco Silva"]
[WhiteFideId "14501945"]
[BlackFideId "1512285"]
[WhiteElo "2172"]
[BlackElo "2159"]
[Result "0-1"]
[Round "02"]
[TimeControl "180+1"]
[Date "2022.11.30"]
[WhiteClock "0:00:01"]
[BlackClock "0:01:33"]

1. b3 {[%clk 0:02:57]}  e5 {[%clk 0:02:56]} 2. Bb2 {[%clk 0:02:57]}  Nc6 {[%clk 0:02:54]} 3. d3 {[%clk 0:02:51]}  Nf6 {[%clk 0:02:52]} 4. Nd2 {[%clk 0:02:50]}  d5 {[%clk 0:02:51]} 5. g3 {[%clk 0:02:49]}  Bb4 {[%clk 0:02:50]} 6. Bg2 {[%clk 0:02:49]}  O-O {[%clk 0:02:47]} 7. a3 {[%clk 0:02:48]}  Bc5 {[%clk 0:02:44]} 8. b4 {[%clk 0:02:48]}  Bd6 {[%clk 0:02:44]} 9. h3 {[%clk 0:02:41]}  Re8 {[%clk 0:02:41]} 10. e4 {[%clk 0:02:41]}  dxe4 {[%clk 0:02:38]} 11. dxe4 {[%clk 0:02:41]}  Nd4 {[%clk 0:02:36]} 12. Ne2 {[%clk 0:02:39]}  c5 {[%clk 0:02:36]} 13. c3 {[%clk 0:02:35]}  Ne6 {[%clk 0:02:31]} 14. Nc4 {[%clk 0:02:30]}  Bc7 {[%clk 0:02:30]} 15. O-O {[%clk 0:02:24]}  b5 {[%clk 0:02:28]} 16. Ne3 {[%clk 0:02:21]}  Bb7 {[%clk 0:02:24]} 17. Nd5 {[%clk 0:02:19]}  a5 {[%clk 0:02:23]} 18. a4 {[%clk 0:01:56]}  cxb4 {[%clk 0:02:23]} 19. axb5 {[%clk 0:01:53]}  bxc3 {[%clk 0:02:22]} 20. Bxc3 {[%clk 0:01:54]}  Nxd5 {[%clk 0:02:03]} 21. exd5 {[%clk 0:01:54]}  Nc5 {[%clk 0:02:01]} 22. Qc2 {[%clk 0:01:31]}  Bd6 {[%clk 0:02:00]} 23. Rfd1 {[%clk 0:01:12]}  Qb6 {[%clk 0:01:57]} 24. Qb2 {[%clk 0:00:57]}  f5 {[%clk 0:01:52]} 25. Kh2 {[%clk 0:00:51]}  Ne4 {[%clk 0:01:48]} 26. Bxe4 {[%clk 0:00:49]}  fxe4 {[%clk 0:01:48]} 27. Kg2 {[%clk 0:00:29]}  a4 {[%clk 0:01:47]} 28. Nc1 {[%clk 0:00:16]}  a3 {[%clk 0:01:47]} 29. Qe2 {[%clk 0:00:12]}  Rf8 {[%clk 0:01:43]} 30. Nb3 {[%clk 0:00:10]}  Rf3 {[%clk 0:01:41]} 31. Be1 {[%clk 0:00:05]}  Raf8 {[%clk 0:01:39]} 32. Nd2 {[%clk 0:00:01]}  Bxd5 {[%clk 0:01:34]} 33. Qxf3 {[%clk 0:00:01]}  exf3+ {[%clk 0:01:33]} 0-1


[Site "https://www.chess.com"]

[Event "Titled Tuesday Blitz November 29 Early 2022"]
[White "Fernandez Siles, Luis"]
[Black "Hambleton, Aman"]
[WhiteFideId "2209420"]
[BlackFideId "2606577"]
[WhiteElo "2186"]
[BlackElo "2538"]
[Result "1-0"]
[Round "02"]
[TimeControl "180+1"]
[Date "2022.11.30"]
[WhiteClock "0:01:16"]
[BlackClock "0:00:02"]

1. d4 {[%clk 0:03:00]}  Nf6 {[%clk 0:02:57]} 2. c4 {[%clk 0:03:00]}  e6 {[%clk 0:02:55]} 3. Nf3 {[%clk 0:02:59]}  b6 {[%clk 0:02:55]} 4. Nc3 {[%clk 0:02:58]}  Bb7 {[%clk 0:02:45]} 5. a3 {[%clk 0:02:52]}  d5 {[%clk 0:02:44]} 6. cxd5 {[%clk 0:02:50]}  Nxd5 {[%clk 0:02:44]} 7. Qc2 {[%clk 0:02:49]}  Be7 {[%clk 0:02:44]} 8. e4 {[%clk 0:02:48]}  Nxc3 {[%clk 0:02:44]} 9. bxc3 {[%clk 0:02:49]}  c5 {[%clk 0:02:45]} 10. Bd3 {[%clk 0:02:49]}  Qc8 {[%clk 0:02:41]} 11. Qd2 {[%clk 0:02:30]}  O-O {[%clk 0:02:29]} 12. O-O {[%clk 0:02:29]}  Rd8 {[%clk 0:02:26]} 13. Bb2 {[%clk 0:02:24]}  Nc6 {[%clk 0:02:25]} 14. Qf4 {[%clk 0:02:19]}  Ba6 {[%clk 0:01:42]} 15. Rad1 {[%clk 0:01:53]}  Bxd3 {[%clk 0:01:03]} 16. Rxd3 {[%clk 0:01:54]}  cxd4 {[%clk 0:01:03]} 17. cxd4 {[%clk 0:01:53]}  Na5 {[%clk 0:00:17]} 18. Rc1 {[%clk 0:01:48]}  Qa6 {[%clk 0:00:14]} 19. Ne5 {[%clk 0:01:29]}  Bf6 {[%clk 0:00:02]} 20. Rg3 {[%clk 0:01:24]}  Nc4 {[%clk 0:00:01]} 21. Qxf6 {[%clk 0:01:21]}  g6 {[%clk 0:00:01]} 22. Qxf7+ {[%clk 0:01:20]}  Kh8 {[%clk 0:00:02]} 23. Rxg6 {[%clk 0:01:17]}  Rg8 {[%clk 0:00:02]} 24. Qf6+ {[%clk 0:01:16]} 1-0


[Site "https://www.chess.com"]

[Event "Titled Tuesday Blitz November 29 Early 2022"]
[White "Firouzja, Alireza"]
[Black "Trost, Edvin"]
[WhiteFideId "12573981"]
[BlackFideId "1729519"]
[WhiteElo "2903"]
[BlackElo "2247"]
[Result "1-0"]
[Round "02"]
[TimeControl "180+1"]
[Date "2022.11.30"]
[WhiteClock "0:01:01"]
[BlackClock "0:00:10"]

1. d4 {[%clk 0:02:08]}  Nf6 {[%clk 0:02:58]} 2. Bg5 {[%clk 0:02:07]}  d5 {[%clk 0:02:52]} 3. e3 {[%clk 0:02:06]}  Nbd7 {[%clk 0:02:48]} 4. c4 {[%clk 0:02:05]}  e6 {[%clk 0:02:48]} 5. cxd5 {[%clk 0:02:05]}  exd5 {[%clk 0:02:48]} 6. Nc3 {[%clk 0:02:05]}  h6 {[%clk 0:02:48]} 7. Bh4 {[%clk 0:02:05]}  Bb4 {[%clk 0:02:38]} 8. Bd3 {[%clk 0:02:04]}  O-O {[%clk 0:02:36]} 9. Ne2 {[%clk 0:02:04]}  c6 {[%clk 0:02:32]} 10. O-O {[%clk 0:02:04]}  Re8 {[%clk 0:02:32]} 11. a3 {[%clk 0:01:56]}  Bd6 {[%clk 0:02:32]} 12. Qd2 {[%clk 0:01:53]}  Nf8 {[%clk 0:02:26]} 13. f3 {[%clk 0:01:51]}  Ng6 {[%clk 0:02:19]} 14. Bf2 {[%clk 0:01:51]}  c5 {[%clk 0:02:02]} 15. Kh1 {[%clk 0:01:47]}  Nf8 {[%clk 0:01:58]} 16. Nb5 {[%clk 0:01:41]}  Be7 {[%clk 0:01:54]} 17. e4 {[%clk 0:01:28]}  a6 {[%clk 0:01:44]} 18. e5 {[%clk 0:01:26]}  axb5 {[%clk 0:01:29]} 19. exf6 {[%clk 0:01:26]}  Bxf6 {[%clk 0:01:30]} 20. dxc5 {[%clk 0:01:24]}  Bd7 {[%clk 0:01:24]} 21. Nd4 {[%clk 0:01:23]}  Bxd4 {[%clk 0:01:19]} 22. Bxd4 {[%clk 0:01:23]}  Ne6 {[%clk 0:01:20]} 23. Bf2 {[%clk 0:01:23]}  Bc6 {[%clk 0:01:17]} 24. Rfe1 {[%clk 0:01:21]}  d4 {[%clk 0:01:17]} 25. Qb4 {[%clk 0:01:21]}  Qd7 {[%clk 0:01:16]} 26. Bf1 {[%clk 0:01:21]}  Rad8 {[%clk 0:01:12]} 27. Rad1 {[%clk 0:01:21]}  Qd5 {[%clk 0:01:07]} 28. Bxb5 {[%clk 0:01:18]}  Bxb5 {[%clk 0:00:55]} 29. Qxb5 {[%clk 0:01:18]}  Qxc5 {[%clk 0:00:32]} 30. Qxc5 {[%clk 0:01:16]}  Nxc5 {[%clk 0:00:33]} 31. Rxe8+ {[%clk 0:01:14]}  Rxe8 {[%clk 0:00:34]} 32. Rxd4 {[%clk 0:01:14]}  Nb3 {[%clk 0:00:28]} 33. Rb4 {[%clk 0:01:11]}  Na5 {[%clk 0:00:28]} 34. h3 {[%clk 0:01:04]}  Re2 {[%clk 0:00:26]} 35. Bg3 {[%clk 0:01:04]}  Rc2 {[%clk 0:00:22]} 36. Kh2 {[%clk 0:00:59]}  f6 {[%clk 0:00:20]} 37. h4 {[%clk 0:00:59]}  Kf7 {[%clk 0:00:19]} 38. Rb5 {[%clk 0:00:59]}  Nc4 {[%clk 0:00:14]} 39. Rxb7+ {[%clk 0:00:59]}  Kg6 {[%clk 0:00:14]} 40. Rc7 {[%clk 0:01:00]}  Kf5 {[%clk 0:00:11]} 41. a4 {[%clk 0:00:59]}  g5 {[%clk 0:00:09]} 42. b3 {[%clk 0:00:59]}  Ne3 {[%clk 0:00:09]} 43. Rxc2 {[%clk 0:00:59]}  Nxc2 {[%clk 0:00:09]} 44. a5 {[%clk 0:01:00]}  Nb4 {[%clk 0:00:10]} 45. Be1 {[%clk 0:01:00]}  Na6 {[%clk 0:00:10]} 46. b4 {[%clk 0:01:00]}  Nc7 {[%clk 0:00:10]} 47. Bg3 {[%clk 0:01:00]}  Nb5 {[%clk 0:00:10]} 48. a6 {[%clk 0:01:00]}  gxh4 {[%clk 0:00:10]} 49. Bf2 {[%clk 0:01:01]} 1-0


[Site "https://www.chess.com"]

[Event "Titled Tuesday Blitz November 29 Early 2022"]
[White "Flis, Pawel"]
[Black "Kvaloy, Aksel Bu"]
[WhiteFideId "1112864"]
[BlackFideId "1528815"]
[WhiteElo "1817"]
[BlackElo "2184"]
[Result "0-1"]
[Round "02"]
[TimeControl "180+1"]
[Date "2022.11.30"]
[WhiteClock "0:00:13"]
[BlackClock "0:00:42"]

1. e4 {[%clk 0:03:00]}  e5 {[%clk 0:03:00]} 2. d4 {[%clk 0:03:00]}  exd4 {[%clk 0:02:59]} 3. Nf3 {[%clk 0:03:01]}  Nc6 {[%clk 0:02:58]} 4. Bc4 {[%clk 0:03:01]}  Nf6 {[%clk 0:02:58]} 5. e5 {[%clk 0:03:02]}  d5 {[%clk 0:02:58]} 6. Bb5 {[%clk 0:03:02]}  Ne4 {[%clk 0:02:54]} 7. Nxd4 {[%clk 0:03:02]}  Bd7 {[%clk 0:02:54]} 8. Bxc6 {[%clk 0:03:03]}  bxc6 {[%clk 0:02:54]} 9. O-O {[%clk 0:03:03]}  Bc5 {[%clk 0:02:53]} 10. Be3 {[%clk 0:03:03]}  O-O {[%clk 0:02:52]} 11. f3 {[%clk 0:03:03]}  Ng5 {[%clk 0:02:51]} 12. f4 {[%clk 0:03:03]}  f6 {[%clk 0:02:51]} 13. fxg5 {[%clk 0:02:46]}  fxe5 {[%clk 0:02:51]} 14. Nf5 {[%clk 0:02:41]}  d4 {[%clk 0:02:48]} 15. Nxd4 {[%clk 0:02:14]}  Rxf1+ {[%clk 0:02:15]} 16. Qxf1 {[%clk 0:02:07]}  Bxd4 {[%clk 0:02:12]} 17. Bxd4 {[%clk 0:02:00]}  exd4 {[%clk 0:02:13]} 18. Qc4+ {[%clk 0:01:52]}  Kh8 {[%clk 0:02:12]} 19. Qxd4 {[%clk 0:01:51]}  Bf5 {[%clk 0:02:12]} 20. Qxd8+ {[%clk 0:00:51]}  Rxd8 {[%clk 0:02:13]} 21. Nc3 {[%clk 0:00:51]}  Rd2 {[%clk 0:02:04]} 22. Re1 {[%clk 0:00:50]}  Kg8 {[%clk 0:02:03]} 23. Re2 {[%clk 0:00:41]}  Rxc2 {[%clk 0:01:59]} 24. Rxc2 {[%clk 0:00:38]}  Bxc2 {[%clk 0:02:00]} 25. Kf2 {[%clk 0:00:38]}  Kf7 {[%clk 0:01:57]} 26. Ke3 {[%clk 0:00:36]}  Ke6 {[%clk 0:01:55]} 27. g4 {[%clk 0:00:25]}  c5 {[%clk 0:01:45]} 28. h4 {[%clk 0:00:22]}  g6 {[%clk 0:01:42]} 29. Kf4 {[%clk 0:00:17]}  a6 {[%clk 0:01:26]} 30. Ne4 {[%clk 0:00:15]}  Bxe4 {[%clk 0:01:24]} 31. Kxe4 {[%clk 0:00:16]}  Kd6 {[%clk 0:01:25]} 32. h5 {[%clk 0:00:16]}  Ke6 {[%clk 0:01:23]} 33. b3 {[%clk 0:00:12]}  Kd6 {[%clk 0:01:23]} 34. Kf4 {[%clk 0:00:11]}  Kd5 {[%clk 0:01:23]} 35. hxg6 {[%clk 0:00:12]}  hxg6 {[%clk 0:01:23]} 36. Ke3 {[%clk 0:00:07]}  Ke5 {[%clk 0:00:58]} 37. Kf3 {[%clk 0:00:07]}  Kd4 {[%clk 0:00:58]} 38. Kf4 {[%clk 0:00:08]}  a5 {[%clk 0:00:44]} 39. Kf3 {[%clk 0:00:05]}  c4 {[%clk 0:00:28]} 40. bxc4 {[%clk 0:00:04]}  Kxc4 {[%clk 0:00:29]} 41. Kf4 {[%clk 0:00:05]}  Kd4 {[%clk 0:00:29]} 42. Kf3 {[%clk 0:00:04]}  Kd3 {[%clk 0:00:22]} 43. Kf4 {[%clk 0:00:03]}  c5 {[%clk 0:00:23]} 44. Ke5 {[%clk 0:00:04]}  c4 {[%clk 0:00:24]} 45. Kf6 {[%clk 0:00:04]}  c3 {[%clk 0:00:25]} 46. Kxg6 {[%clk 0:00:05]}  c2 {[%clk 0:00:26]} 47. Kh7 {[%clk 0:00:05]}  c1=Q {[%clk 0:00:27]} 48. g6 {[%clk 0:00:05]}  Qg5 {[%clk 0:00:24]} 49. g7 {[%clk 0:00:04]}  Qxg4 {[%clk 0:00:24]} 50. g8=Q {[%clk 0:00:04]}  Qxg8+ {[%clk 0:00:25]} 51. Kxg8 {[%clk 0:00:04]}  Kc3 {[%clk 0:00:26]} 52. Kf7 {[%clk 0:00:05]}  Kb2 {[%clk 0:00:26]} 53. Ke6 {[%clk 0:00:06]}  Kxa2 {[%clk 0:00:26]} 54. Kd5 {[%clk 0:00:07]}  Kb3 {[%clk 0:00:26]} 55. Kd4 {[%clk 0:00:07]}  a4 {[%clk 0:00:27]} 56. Kd3 {[%clk 0:00:07]}  a3 {[%clk 0:00:28]} 57. Kd2 {[%clk 0:00:08]}  Kb2 {[%clk 0:00:28]} 58. Kd1 {[%clk 0:00:09]}  a2 {[%clk 0:00:29]} 59. Kd2 {[%clk 0:00:09]}  a1=Q {[%clk 0:00:30]} 60. Ke3 {[%clk 0:00:10]}  Qc1+ {[%clk 0:00:31]} 61. Ke4 {[%clk 0:00:10]}  Qc3 {[%clk 0:00:32]} 62. Kd5 {[%clk 0:00:11]}  Kc2 {[%clk 0:00:33]} 63. Ke6 {[%clk 0:00:11]}  Qd3 {[%clk 0:00:34]} 64. Kf6 {[%clk 0:00:10]}  Kc3 {[%clk 0:00:34]} 65. Ke6 {[%clk 0:00:11]}  Qd4 {[%clk 0:00:35]} 66. Kf7 {[%clk 0:00:11]}  Kc4 {[%clk 0:00:36]} 67. Ke8 {[%clk 0:00:11]}  Qd5 {[%clk 0:00:37]} 68. Kf8 {[%clk 0:00:11]}  Kc5 {[%clk 0:00:38]} 69. Kg7 {[%clk 0:00:12]}  Qd6 {[%clk 0:00:39]} 70. Kh8 {[%clk 0:00:12]}  Kd5 {[%clk 0:00:40]} 71. Kg7 {[%clk 0:00:12]}  Qe6 {[%clk 0:00:40]} 72. Kh8 {[%clk 0:00:13]}  Qe7 {[%clk 0:00:40]} 73. Kg8 {[%clk 0:00:13]}  Ke6 {[%clk 0:00:41]} 74. Kh8 {[%clk 0:00:13]}  Kf6 {[%clk 0:00:42]} 75. Kg8 {[%clk 0:00:13]}  Qg7# {[%clk 0:00:42]} 0-1


[Site "https://www.chess.com"]

[Event "Titled Tuesday Blitz November 29 Early 2022"]
[White "Forgacs, Attila Jr."]
[Black "Boyer, Mahel"]
[WhiteFideId "773654"]
[BlackFideId "45102422"]
[WhiteElo "2168"]
[BlackElo "2454"]
[Result "0-1"]
[Round "02"]
[TimeControl "180+1"]
[Date "2022.11.30"]
[WhiteClock "0:00:04"]
[BlackClock "0:01:57"]

1. e4 {[%clk 0:03:00]}  c5 {[%clk 0:02:48]} 2. d3 {[%clk 0:02:59]}  d6 {[%clk 0:02:49]} 3. g3 {[%clk 0:03:00]}  g6 {[%clk 0:02:49]} 4. Bg2 {[%clk 0:03:00]}  Bg7 {[%clk 0:02:50]} 5. f4 {[%clk 0:03:01]}  Bh3 {[%clk 0:02:51]} 6. Nxh3 {[%clk 0:02:55]}  Nc6 {[%clk 0:02:50]} 7. Nc3 {[%clk 0:02:54]}  e6 {[%clk 0:02:48]} 8. Nf2 {[%clk 0:02:54]}  h5 {[%clk 0:02:46]} 9. O-O {[%clk 0:02:54]}  h4 {[%clk 0:02:47]} 10. g4 {[%clk 0:02:52]}  g5 {[%clk 0:02:46]} 11. f5 {[%clk 0:02:50]}  Nge7 {[%clk 0:02:46]} 12. h3 {[%clk 0:02:47]}  Be5 {[%clk 0:02:42]} 13. Bxg5 {[%clk 0:02:43]}  Qb6 {[%clk 0:02:41]} 14. Qd2 {[%clk 0:02:22]}  Qxb2 {[%clk 0:02:39]} 15. Ne2 {[%clk 0:02:09]}  O-O-O {[%clk 0:02:28]} 16. Bxe7 {[%clk 0:02:01]}  Nxe7 {[%clk 0:02:26]} 17. Rfb1 {[%clk 0:01:52]}  Qa3 {[%clk 0:02:24]} 18. Rb3 {[%clk 0:01:50]}  Qa4 {[%clk 0:02:21]} 19. Rab1 {[%clk 0:01:50]}  b6 {[%clk 0:02:20]} 20. c3 {[%clk 0:01:40]}  Nc6 {[%clk 0:02:19]} 21. d4 {[%clk 0:01:11]}  cxd4 {[%clk 0:02:20]} 22. cxd4 {[%clk 0:01:11]}  Nxd4 {[%clk 0:02:21]} 23. Nxd4 {[%clk 0:01:06]}  Qxd4 {[%clk 0:02:20]} 24. Qxd4 {[%clk 0:00:55]}  Bxd4 {[%clk 0:02:21]} 25. Kf1 {[%clk 0:00:56]}  Kb8 {[%clk 0:02:21]} 26. Rd1 {[%clk 0:00:53]}  Be5 {[%clk 0:02:18]} 27. Rc1 {[%clk 0:00:52]}  Bf4 {[%clk 0:02:17]} 28. Rc2 {[%clk 0:00:52]}  Rc8 {[%clk 0:02:17]} 29. Rbc3 {[%clk 0:00:51]}  Rc5 {[%clk 0:02:17]} 30. Rxc5 {[%clk 0:00:51]}  bxc5 {[%clk 0:02:14]} 31. Nd3 {[%clk 0:00:49]}  Bg3 {[%clk 0:02:14]} 32. Rb2+ {[%clk 0:00:48]}  Kc7 {[%clk 0:02:14]} 33. Ke2 {[%clk 0:00:46]}  Rc8 {[%clk 0:02:09]} 34. e5 {[%clk 0:00:37]}  c4 {[%clk 0:02:08]} 35. Rb7+ {[%clk 0:00:32]}  Kd8 {[%clk 0:02:08]} 36. Nb4 {[%clk 0:00:30]}  dxe5 {[%clk 0:02:02]} 37. Rxf7 {[%clk 0:00:22]}  exf5 {[%clk 0:02:02]} 38. gxf5 {[%clk 0:00:19]}  c3 {[%clk 0:02:03]} 39. Kd3 {[%clk 0:00:18]}  Rc5 {[%clk 0:01:59]} 40. Nc6+ {[%clk 0:00:17]}  Ke8 {[%clk 0:01:59]} 41. Re7+ {[%clk 0:00:16]}  Kf8 {[%clk 0:01:59]} 42. Rxa7 {[%clk 0:00:16]}  c2 {[%clk 0:01:59]} 43. f6 {[%clk 0:00:04]}  c1=Q {[%clk 0:01:56]} 44. Ra8+ {[%clk 0:00:04]}  Kf7 {[%clk 0:01:57]} 0-1


[Site "https://www.chess.com"]

[Event "Titled Tuesday Blitz November 29 Early 2022"]
[White "Fromm, Marius"]
[Black "Gareyev, Timur"]
[WhiteFideId "12993190"]
[BlackFideId "14200937"]
[WhiteElo "2325"]
[BlackElo "2552"]
[Result "0-1"]
[Round "02"]
[TimeControl "180+1"]
[Date "2022.11.30"]
[WhiteClock "0:00:01"]
[BlackClock "0:00:15"]

1. e4 {[%clk 0:03:00]}  g6 {[%clk 0:02:49]} 2. d4 {[%clk 0:03:00]}  d6 {[%clk 0:02:43]} 3. Nc3 {[%clk 0:03:00]}  a6 {[%clk 0:02:42]} 4. Be3 {[%clk 0:02:58]}  Nd7 {[%clk 0:02:40]} 5. Nf3 {[%clk 0:02:53]}  b5 {[%clk 0:02:37]} 6. Bd3 {[%clk 0:02:52]}  Bb7 {[%clk 0:02:30]} 7. a4 {[%clk 0:02:52]}  b4 {[%clk 0:02:30]} 8. Ne2 {[%clk 0:02:37]}  Bg7 {[%clk 0:02:17]} 9. Qd2 {[%clk 0:02:33]}  Ngf6 {[%clk 0:02:13]} 10. Ng3 {[%clk 0:02:33]}  a5 {[%clk 0:02:08]} 11. c3 {[%clk 0:02:24]}  O-O {[%clk 0:01:55]} 12. Bh6 {[%clk 0:02:17]}  c5 {[%clk 0:01:47]} 13. Bxg7 {[%clk 0:02:15]}  Kxg7 {[%clk 0:01:47]} 14. O-O {[%clk 0:02:14]}  e5 {[%clk 0:01:13]} 15. Rfe1 {[%clk 0:01:42]}  Qe7 {[%clk 0:01:09]} 16. Qg5 {[%clk 0:01:35]}  Kh8 {[%clk 0:01:06]} 17. Bb5 {[%clk 0:01:25]}  cxd4 {[%clk 0:00:55]} 18. Bxd7 {[%clk 0:01:18]}  dxc3 {[%clk 0:00:53]} 19. bxc3 {[%clk 0:01:19]}  bxc3 {[%clk 0:00:53]} 20. Bb5 {[%clk 0:01:13]}  Rac8 {[%clk 0:00:53]} 21. Rac1 {[%clk 0:01:12]}  Rc5 {[%clk 0:00:52]} 22. Rc2 {[%clk 0:00:44]}  Rfc8 {[%clk 0:00:48]} 23. Rec1 {[%clk 0:00:42]}  Ng8 {[%clk 0:00:44]} 24. Qe3 {[%clk 0:00:41]}  Qc7 {[%clk 0:00:40]} 25. Ne2 {[%clk 0:00:37]}  Nf6 {[%clk 0:00:40]} 26. Rxc3 {[%clk 0:00:28]}  Nxe4 {[%clk 0:00:39]} 27. Rxc5 {[%clk 0:00:28]}  Nxc5 {[%clk 0:00:39]} 28. h4 {[%clk 0:00:20]}  f6 {[%clk 0:00:37]} 29. h5 {[%clk 0:00:17]}  g5 {[%clk 0:00:37]} 30. Ng3 {[%clk 0:00:18]}  Bd5 {[%clk 0:00:34]} 31. Rd1 {[%clk 0:00:16]}  Be6 {[%clk 0:00:34]} 32. Nd2 {[%clk 0:00:16]}  d5 {[%clk 0:00:33]} 33. Nf3 {[%clk 0:00:15]}  d4 {[%clk 0:00:33]} 34. Nxd4 {[%clk 0:00:15]}  exd4 {[%clk 0:00:32]} 35. Qxd4 {[%clk 0:00:15]}  Qf7 {[%clk 0:00:23]} 36. Rc1 {[%clk 0:00:14]}  Qe7 {[%clk 0:00:19]} 37. h6 {[%clk 0:00:09]}  Kg8 {[%clk 0:00:18]} 38. Nh5 {[%clk 0:00:09]}  Kf7 {[%clk 0:00:17]} 39. Re1 {[%clk 0:00:05]}  Rd8 {[%clk 0:00:16]} 40. Qe3 {[%clk 0:00:05]}  Rd5 {[%clk 0:00:16]} 41. Bc4 {[%clk 0:00:04]}  Re5 {[%clk 0:00:17]} 42. Qd2 {[%clk 0:00:04]}  Bxc4 {[%clk 0:00:16]} 43. Rxe5 {[%clk 0:00:02]}  Qxe5 {[%clk 0:00:16]} 44. g3 {[%clk 0:00:02]}  Kg6 {[%clk 0:00:15]} 45. Ng7 {[%clk 0:00:01]}  Kxh6 {[%clk 0:00:15]} 0-1


[Site "https://www.chess.com"]

[Event "Titled Tuesday Blitz November 29 Early 2022"]
[White "Gabrielian, Artur"]
[Black "Bruned, Yvain"]
[WhiteFideId "4131002"]
[BlackFideId "2250292"]
[WhiteElo "2432"]
[BlackElo "2183"]
[Result "1-0"]
[Round "02"]
[TimeControl "180+1"]
[Date "2022.11.30"]
[WhiteClock "0:01:31"]
[BlackClock "0:01:17"]

1. e4 {[%clk 0:03:00]}  b6 {[%clk 0:03:00]} 2. d4 {[%clk 0:03:00]}  Bb7 {[%clk 0:03:01]} 3. Nc3 {[%clk 0:03:00]}  e6 {[%clk 0:03:01]} 4. a3 {[%clk 0:02:59]}  d5 {[%clk 0:02:59]} 5. exd5 {[%clk 0:02:54]}  exd5 {[%clk 0:03:00]} 6. Nf3 {[%clk 0:02:51]}  Nf6 {[%clk 0:03:00]} 7. Bb5+ {[%clk 0:02:51]}  c6 {[%clk 0:02:59]} 8. Bd3 {[%clk 0:02:51]}  Be7 {[%clk 0:02:56]} 9. O-O {[%clk 0:02:50]}  O-O {[%clk 0:02:57]} 10. Re1 {[%clk 0:02:50]}  Nbd7 {[%clk 0:02:56]} 11. Ne2 {[%clk 0:02:49]}  Re8 {[%clk 0:02:52]} 12. Ng3 {[%clk 0:02:48]}  Bf8 {[%clk 0:02:52]} 13. Bf4 {[%clk 0:02:47]}  c5 {[%clk 0:02:51]} 14. c3 {[%clk 0:02:47]}  Ne4 {[%clk 0:02:47]} 15. Qc2 {[%clk 0:02:46]}  Ndf6 {[%clk 0:02:45]} 16. Ne5 {[%clk 0:02:44]}  cxd4 {[%clk 0:02:44]} 17. cxd4 {[%clk 0:02:44]}  Rc8 {[%clk 0:02:43]} 18. Qb3 {[%clk 0:02:39]}  Nxg3 {[%clk 0:02:39]} 19. hxg3 {[%clk 0:02:33]}  Ne4 {[%clk 0:02:34]} 20. Bxe4 {[%clk 0:02:32]}  Rxe5 {[%clk 0:02:28]} 21. Bxh7+ {[%clk 0:02:24]}  Kxh7 {[%clk 0:02:23]} 22. Bxe5 {[%clk 0:02:24]}  f6 {[%clk 0:02:21]} 23. Bf4 {[%clk 0:02:23]}  Ba6 {[%clk 0:02:20]} 24. Rac1 {[%clk 0:02:21]}  Bc4 {[%clk 0:02:18]} 25. Qf3 {[%clk 0:02:20]}  Kg8 {[%clk 0:02:18]} 26. b3 {[%clk 0:02:19]}  Ba6 {[%clk 0:02:10]} 27. Rxc8 {[%clk 0:02:19]}  Bxc8 {[%clk 0:02:11]} 28. a4 {[%clk 0:02:18]}  a6 {[%clk 0:02:04]} 29. Qe2 {[%clk 0:02:15]}  Qd7 {[%clk 0:01:55]} 30. Qe8 {[%clk 0:02:14]}  b5 {[%clk 0:01:50]} 31. axb5 {[%clk 0:02:12]}  axb5 {[%clk 0:01:51]} 32. Qxd7 {[%clk 0:02:06]}  Bxd7 {[%clk 0:01:50]} 33. Rc1 {[%clk 0:02:03]}  Bf5 {[%clk 0:01:45]} 34. Rc7 {[%clk 0:01:59]}  Bb1 {[%clk 0:01:38]} 35. Rd7 {[%clk 0:01:55]}  Ba2 {[%clk 0:01:35]} 36. Rxd5 {[%clk 0:01:52]}  b4 {[%clk 0:01:35]} 37. Rb5 {[%clk 0:01:43]}  Bxb3 {[%clk 0:01:34]} 38. Bd2 {[%clk 0:01:42]}  Bc4 {[%clk 0:01:32]} 39. Rb8 {[%clk 0:01:41]}  Kf7 {[%clk 0:01:20]} 40. Bxb4 {[%clk 0:01:40]}  Bxb4 {[%clk 0:01:21]} 41. Rxb4 {[%clk 0:01:39]}  Bd5 {[%clk 0:01:22]} 42. Rb6 {[%clk 0:01:38]}  g6 {[%clk 0:01:21]} 43. f3 {[%clk 0:01:37]}  Ke7 {[%clk 0:01:21]} 44. g4 {[%clk 0:01:37]}  g5 {[%clk 0:01:20]} 45. Kf2 {[%clk 0:01:36]}  Be6 {[%clk 0:01:20]} 46. Ke3 {[%clk 0:01:35]}  Bc4 {[%clk 0:01:20]} 47. Ke4 {[%clk 0:01:33]}  Be6 {[%clk 0:01:18]} 48. d5 {[%clk 0:01:33]}  Bd7 {[%clk 0:01:18]} 49. Kd4 {[%clk 0:01:32]}  Kd8 {[%clk 0:01:17]} 50. Kc5 {[%clk 0:01:32]}  Ke7 {[%clk 0:01:17]} 51. Rb7 {[%clk 0:01:31]} 1-0


[Site "https://www.chess.com"]